[Event "CCT Airthings Masters Play-In 2023"]
[Site "Online"]
[Date "2023.02.03"]
[Round "4"]
[White "kpio91"]
[Black "GMBenjaminBok"]
[Result "1/2-1/2"]
[ECO "B51"]
[WhiteElo "2364"]
[BlackElo "2579"]
[Annotator "NA"]
[PlyCount "177"]
[EventDate "2023.02.03"]
[EventType "swiss"]
[EventCountry "NET"]
[SourceTitle "playchess.com"]
[Source "ChessBase"]
[SourceQuality "1"]
[TimeControl "600+2"]

1. e4 {[%emt 0:00:03]} c5 {[%emt 0:00:04]} 2. Nf3 {[%emt 0:00:00]} d6 {[%emt 0:00:02]} 3. Bb5+ {[%emt 0:00:11]} Nd7 {[%emt 0:00:01]} 4. d4 {[%emt 0:00:21]} cxd4 {[%emt 0:00:02]} 5. Qxd4 {[%emt 0:00:01]} a6 {[%emt 0:00:01]} 6. Be2 {[%emt 0:00:09]} Ngf6 {[%emt 0:00:05]} 7. c4 {[%emt 0:00:09]} g6 {[%emt 0:00:06]} 8. O-O {[%emt 0:00:05]} Bg7 {[%emt 0:00:01]} 9. Nc3 {[%emt 0:00:13]} O-O {[%emt 0:00:04]} 10. Qe3 {[%emt 0:00:01]} Ng4 {[%emt 0:00:33]} 11. Qd2 {[%emt 0:00:02]} Nde5 {[%emt 0:00:02]} 12. b3 {[%emt 0:00:58]} Nxf3+ {[%emt 0:01:46]} 13. Bxf3 {[%emt 0:00:03]} Ne5 {[%emt 0:00:17]} 14. Be2 {[%emt 0:00:02]} Bd7 {[%emt 0:00:02]} 15. Bb2 {[%emt 0:00:02]} Qa5 {[%emt 0:00:03]} 16. Rad1 {[%emt 0:00:33]} Rfe8 {[%emt 0:00:21]} 17. a3 {[%emt 0:00:37]} Rac8 {[%emt 0:00:17]} 18. h3 {[%emt 0:01:12]} Qb6 {[%emt 0:00:56]} 19. Qc2 {[%emt 0:00:43]} Qa7 {[%emt 0:00:02]} 20. a4 {[%emt 0:00:18]} Nc6 {[%emt 0:00:25]} 21. Nd5 {[%emt 0:00:39]} Nd4 {[%emt 0:00:03]} 22. Qd3 {[%emt 0:00:09]} Nf3+ {[%emt 0:00:11]} 23. Qxf3 {[%emt 0:00:48]} Bxb2 {[%emt 0:00:00]} 24. a5 {[%emt 0:00:00]} Bc6 {[%emt 0:00:11]} 25. Nb6 {[%emt 0:00:08]} Rcd8 {[%emt 0:00:04]} 26. Qe3 {[%emt 0:00:07]} e5 {[%emt 0:01:17]} 27. Bf3 {[%emt 0:00:42]} Ba3 {[%emt 0:02:15]} 28. h4 {[%emt 0:00:52]} Bc5 {[%emt 0:00:34]} 29. Qg5 {[%emt 0:00:10]} Bxb6 {[%emt 0:00:03]} 30. axb6 {[%emt 0:00:01]} Qxb6 {[%emt 0:00:00]} 31. Rd3 {[%emt 0:00:00]} Kg7 {[%emt 0:00:11]} 32. h5 {[%emt 0:00:14]} h6 {[%emt 0:00:16]} 33. Qd2 {[%emt 0:00:01]} g5 {[%emt 0:00:02]} 34. Rd1 {[%emt 0:00:26]} a5 {[%emt 0:00:37]} 35. Qe2 {[%emt 0:00:34]} Qc5 {[%emt 0:00:07]} 36. Bg4 {[%emt 0:00:06]} b5 {[%emt 0:00:01]} 37. Bf5 {[%emt 0:00:15]} bxc4 {[%emt 0:00:06]} 38. bxc4 {[%emt 0:00:01]} a4 {[%emt 0:00:01]} 39. Qd2 {[%emt 0:00:06]} a3 {[%emt 0:00:03]} 40. Rg3 {[%emt 0:00:03]} f6 {[%emt 0:00:06]} 41. Ra1 {[%emt 0:00:05]} Ra8 {[%emt 0:00:03]} 42. Rd3 {[%emt 0:00:03]} Red8 {[%emt 0:00:01]} 43. Qc1 {[%emt 0:00:07]} a2 {[%emt 0:00:02]} 44. Rd2 {[%emt 0:00:00]} Rdb8 {[%emt 0:00:03]} 45. Rdxa2 {[%emt 0:00:03]} Rxa2 {[%emt 0:00:00]} 46. Rxa2 {[%emt 0:00:00]} Rb7 {[%emt 0:00:04]} 47. g3 {[%emt 0:00:04]} Qd4 {[%emt 0:00:01]} 48. Qe1 {[%emt 0:00:05]} Qxc4 {[%emt 0:00:03]} 49. Rd2 {[%emt 0:00:03]} Qc5 {[%emt 0:00:02]} 50. Qd1 {[%emt 0:00:03]} Rb4 {[%emt 0:00:03]} 51. Rxd6 {[%emt 0:00:01]} Rd4 {[%emt 0:00:01]} 52. Rxd4 {[%emt 0:00:02]} exd4 {[%emt 0:00:00]} 53. Qb3 {[%emt 0:00:03]} Qe5 {[%emt 0:00:04]} 54. Qb6 {[%emt 0:00:02]} Bxe4 {[%emt 0:00:02]} 55. Qa7+ {[%emt 0:00:00]} Kf8 {[%emt 0:00:01]} 56. Bg6 {[%emt 0:00:05]} Bxg6 {[%emt 0:00:01]} 57. hxg6 {[%emt 0:00:01]} Qe1+ {[%emt 0:00:00]} 58. Kg2 {[%emt 0:00:00]} Qe4+ {[%emt 0:00:01]} 59. Kg1 {[%emt 0:00:02]} Qxg6 {[%emt 0:00:01]} 60. Qc5+ {[%emt 0:00:03]} Kg7 {[%emt 0:00:03]} 61. Qxd4 {[%emt 0:00:01]} h5 {[%emt 0:00:00]} 62. Kg2 {[%emt 0:00:01]} Qf7 {[%emt 0:00:02]} 63. Qe4 {[%emt 0:00:02]} Qd7 {[%emt 0:00:03]} 64. Kg1 {[%emt 0:00:01]} Qd1+ {[%emt 0:00:02]} 65. Kg2 {[%emt 0:00:01]} Qd6 {[%emt 0:00:02]} 66. Qb7+ {[%emt 0:00:02]} Kg6 {[%emt 0:00:03]} 67. Qa8 {[%emt 0:00:01]} Qe6 {[%emt 0:00:02]} 68. Kg1 {[%emt 0:00:04]} Qe1+ {[%emt 0:00:02]} 69. Kg2 {[%emt 0:00:01]} Qe6 {[%emt 0:00:00]} 70. Kg1 {[%emt 0:00:00]} f5 {[%emt 0:00:02]} 71. Qa1 {[%emt 0:00:05]} h4 {[%emt 0:00:03]} 72. gxh4 {[%emt 0:00:04]} gxh4 {[%emt 0:00:00]} 73. Qc3 {[%emt 0:00:05]} Qe4 {[%emt 0:00:05]} 74. Kh2 {[%emt 0:00:02]} Qf4+ {[%emt 0:00:04]} 75. Kg2 {[%emt 0:00:01]} Qg4+ {[%emt 0:00:02]} 76. Kh2 {[%emt 0:00:01]} Qf4+ {[%emt 0:00:02]} 77. Kg2 {[%emt 0:00:01]} Qe4+ {[%emt 0:00:01]} 78. Kh2 {[%emt 0:00:02]} Qe2 {[%emt 0:00:01]} 79. Qc6+ {[%emt 0:00:04]} Kh5 {[%emt 0:00:02]} 80. Qc5 {[%emt 0:00:02]} Qf3 {[%emt 0:00:02]} 81. Qd4 {[%emt 0:00:02]} h3 {[%emt 0:00:02]} 82. Qh8+ {[%emt 0:00:01]} Kg6 {[%emt 0:00:01]} 83. Qg8+ {[%emt 0:00:03]} Kf6 {[%emt 0:00:01]} 84. Qf8+ {[%emt 0:00:01]} Ke5 {[%emt 0:00:05]} 85. Qc5+ {[%emt 0:00:01]} Ke6 {[%emt 0:00:04]} 86. Qc8+ {[%emt 0:00:02]} Kf6 {[%emt 0:00:02]} 87. Qf8+ {[%emt 0:00:01]} Kg6 {[%emt 0:00:02]} 88. Qg8+ {[%emt 0:00:01]} Kf6 {[%emt 0:00:01]} 89. Qf8+ {[%emt 0:00:00]} 1/2-1/2

[Event "CCT Airthings Masters Play-In 2023"]
[Site "Online"]
[Date "2023.02.03"]
[Round "4"]
[White "hissha"]
[Black "severomorskij"]
[Result "0-1"]
[ECO "B30"]
[WhiteElo "2283"]
[BlackElo "2491"]
[Annotator "TA"]
[PlyCount "108"]
[EventDate "2023.02.03"]
[EventType "swiss"]
[EventCountry "NET"]
[SourceTitle "playchess.com"]
[Source "ChessBase"]
[SourceQuality "1"]
[TimeControl "600+2"]

{[%evp 11,108,28,21,10,39,17,18,10,33,25,16,21,16,16,20,0,47,57,36,48,48,48,48,22,29,0,0,0,0,0,0,0,0,-10,-4,-9,0,0,0,0,0,0,0,5,12,12,12,12,10,4,4,-116,-121,-124,-108,-107,-99,-181,-183,-186,-176,-178,-185,-275,-303,-288,-302,-313,-309,-317,-306,-444,-428,-737,-557,-29981,-29981,-29985,-29986,-29988,-29989,-29989,-29990,-29990,-29987,-29991,-29991,-29992,-29993,-29993,-29994,-29997,-29992,-29991,-29992,-29996,-29993,-29993,-29994]} 1. e4 {[%emt 0:00:25]} c5 {[%emt 0:00:05]} 2. Nf3 {[%emt 0:00:04]} Nc6 {[%emt 0:00:03]} 3. Bb5 {[%emt 0:00:04]} e6 {[%emt 0:00:02]} 4. O-O {[%emt 0:00:04]} Nge7 {[%emt 0:00:02]} 5. Re1 {[%emt 0:00:04]} Ng6 {[%emt 0:00:03]} 6. c3 {[%emt 0:00:57]} d5 {[%emt 0:00:04]} 7. exd5 {[%emt 0:00:10] B30: Sicilian: 2...Nc6 3 Bb5, lines without ...g6.} Qxd5 {[%emt 0:00:02]} 8. d4 {[%emt 0:00:08]} (8. Qb3 $5 {[%cal Rb3d5]} Be7 9. Qxd5 exd5 10. d4 $11) 8... cxd4 {[%emt 0:00:02]} 9. Nxd4 {[%emt 0:00:52] The position is equal.} Bd7 {[%emt 0:00:36]} 10. Bf1 {[%emt 0:00:24]} Be7 {[%emt 0:01:10]} 11. Nb5 {[%emt 0:00:18] And now Nc7+ would win.} Qxd1 $1 {[%emt 0:00:09]} 12. Rxd1 {[%emt 0:00:05] Black must now prevent Nc7+.} O-O-O {[%emt 0:00:08] [#] Inhibits Nc7.} 13. Be3 $146 {[%emt 0:00:38]} ({Predecessor:} 13. N1a3 Kb8 14. Be3 e5 15. Nc4 Be6 16. a4 f5 17. f3 Rxd1 18. Rxd1 a6 19. Nba3 {½-½ Vazquez,G (2524)-Hernandez Guerrero,G (2557) Montevideo Duchamp Cup 4th 2020 (5)}) 13... a6 {[%emt 0:00:23]} (13... Kb8 $1 $11 {feels stronger.}) 14. Nd6+ $14 {[%emt 0:00:17]} Bxd6 {[%emt 0:00:02]} 15. Rxd6 {[%emt 0:00:03]} Kc7 {[%emt 0:00:22] Prevents Bb6+.} 16. Rd1 {[%emt 0:00:09]} Nce7 {[%emt 0:00:21][%cal Bc6e7,Be7f5,Bf5e3][%mdl 32]} 17. Nd2 {[%emt 0:00:40]} Nf5 {[%emt 0:00:20]} 18. Nc4 {[%emt 0:00:32] Bb6+ is the strong threat.} Nxe3 {[%emt 0:00:05]} 19. Nxe3 {[%emt 0:00:04]} Bc6 {[%emt 0:00:15]} 20. f3 {[%emt 0:00:21]} h5 {[%emt 0:00:09]} 21. Kf2 {[%emt 0:00:05]} h4 {[%emt 0:00:01]} 22. Nc4 {[%emt 0:00:30]} f6 {[%emt 0:00:49]} 23. Na5 {[%emt 0:00:08]} Nf4 {[%emt 0:00:33]} 24. Nxc6 {[%emt 0:00:11]} Kxc6 {[%emt 0:00:02]} 25. g3 {[%emt 0:00:30]} Nd5 {[%emt 0:00:40]} 26. Bg2 {[%emt 0:00:43]} Kc7 {[%emt 0:00:06]} 27. f4 {[%emt 0:00:05]} Nb6 {[%emt 0:00:10][%cal Bd5b6,Bb6c8,Bc8e7,Be7f5,Bf5g3,Bg3h5,Bh5f4][%mdl 32]} 28. b3 {[%emt 0:00:12]} Nc8 {[%emt 0:00:34]} 29. Rxd8 {[%emt 0:00:16]} Rxd8 $11 {[%emt 0:00:00][%mdl 4096] Endgame KRB-KRN} 30. Ke2 {[%emt 0:00:07] Inhibits Rd2+.} Ne7 {[%emt 0:00:08]} 31. Rd1 {[%emt 0:00:07]} (31. Bf3 $11 {remains equal.}) 31... Rxd1 $17 {[%emt 0:00:04] Black keeps a firm grip on the game.} 32. Kxd1 {[%emt 0:00:03]} hxg3 {[%emt 0:00:00]} 33. hxg3 {[%emt 0:00:05] KB-KN} Nf5 {[%emt 0:00:01] Hoping for ...Ne3+.} 34. Bh3 {[%emt 0:00:14]} (34. Kd2 $17 {keeps fighting.}) 34... Nxg3 $19 {[%emt 0:00:06] ...f5 would be deadly.} 35. Bxe6 {[%emt 0:00:05] [#]} Nh5 $1 {[%emt 0:00:11]} 36. f5 {[%emt 0:00:04]} Nf4 {[%emt 0:00:02] Strongly threatening ...Nxe6.} 37. Bg8 {[%emt 0:00:27] [#]} (37. Bf7 $142) 37... Kd6 $1 {[%emt 0:00:03]} 38. Kd2 {[%emt 0:00:05]} Ke5 {[%emt 0:00:04]} 39. Bh7 {[%emt 0:00:03]} Nd5 {[%emt 0:00:27]} 40. c4 {[%emt 0:00:03]} Ne7 {[%emt 0:00:02]} 41. Kc3 {[%emt 0:00:08]} (41. Ke2 {was necessary.}) 41... Nxf5 {[%emt 0:00:04]} 42. Kb4 {[%emt 0:00:05]} (42. Kd3 $142 g5 43. Bg8) 42... g5 {[%emt 0:00:07] ( -> ...g4)} 43. Kc5 {[%emt 0:00:07]} g4 {[%emt 0:00:06] Black mates.} 44. Bg8 {[%emt 0:00:04]} Ne7 {[%emt 0:00:10]} 45. Bd5 {[%emt 0:00:19]} Nxd5 {[%emt 0:00:06]} 46. cxd5 {[%emt 0:00:00] KP-KP} g3 {[%emt 0:00:02]} 47. d6 {[%emt 0:00:01]} Ke6 {[%emt 0:00:02]} 48. Kb6 {[%emt 0:00:03]} Kxd6 {[%emt 0:00:02]} 49. Kxb7 {[%emt 0:00:02]} g2 {[%emt 0:00:00]} 50. Kxa6 {[%emt 0:00:01]} g1=Q {[%emt 0:00:01]} 51. a4 {[%emt 0:00:15]} Kc7 {[%emt 0:00:03][%csl Gc7][%cal Rg1b6]} 52. Kb5 {[%emt 0:00:09]} f5 {[%emt 0:00:02][%cal Bf6f5,Bf5f4,Bf4f3][%mdl 32]} 53. b4 {[%emt 0:00:07]} f4 {[%emt 0:00:01]} 54. Kc4 {[%emt 0:00:05]} f3 {[%emt 0:00:00] Weighted Error Value: White=0.33/Black=0.05 (flawless)} 0-1

[Event "CCT Airthings Masters Play-In 2023"]
[Site "Online"]
[Date "2023.02.03"]
[Round "4"]
[White "SharapovEvgeny"]
[Black "Vidit, Santosh Gujrathi"]
[Result "0-1"]
[ECO "B33"]
[WhiteElo "2268"]
[BlackElo "2730"]
[Annotator "TA"]
[PlyCount "120"]
[EventDate "2023.02.03"]
[EventType "swiss"]
[EventCountry "NET"]
[SourceTitle "playchess.com"]
[Source "ChessBase"]
[SourceQuality "1"]
[TimeControl "600+2"]

{[%evp 26,120,18,0,7,0,0,0,0,0,5,0,0,0,15,-21,-24,-47,-35,-40,-41,-43,0,0,0,0,0,0,0,0,0,-60,-60,-70,-46,-41,-32,-33,-8,0,0,-94,-93,-89,-101,-83,-65,-65,-66,-66,-66,-66,-66,-66,-14,-21,-21,-21,-15,-21,-21,-21,-21,-22,-22,-22,-15,-15,-15,-60,-60,-60,-60,-60,-60,-60,0,-60,-60,-60,-23,-2119,-1906,-29984,-29985,-29986,-29987,-29987,-29988,-29989,-29990,-29992,-29991,-29994,-29995,-29995,-29996]} 1. e4 {[%emt 0:00:03]} c5 {[%emt 0:01:02]} 2. Nf3 {[%emt 0:00:03]} e6 {[%emt 0:00:02]} 3. d4 {[%emt 0:00:02]} cxd4 {[%emt 0:00:01]} 4. Nxd4 {[%emt 0:00:01]} Nf6 {[%emt 0:00:01]} 5. Nc3 {[%emt 0:00:02]} Nc6 {[%emt 0:00:01]} 6. Ndb5 {[%emt 0:00:06][%cal Bd4b5,Bb5a3,Ba3c2,Bc2e3,Be3d5][%mdl 32]} d6 {[%emt 0:00:04]} 7. Bf4 {[%emt 0:00:02]} e5 {[%emt 0:00:01]} 8. Bg5 {[%emt 0:00:01]} a6 {[%emt 0:00:00]} 9. Na3 {[%emt 0:00:01]} b5 {[%emt 0:00:04]} 10. Nd5 {[%emt 0:00:02]} Be7 {[%emt 0:00:01]} 11. Bxf6 {[%emt 0:00:01]} Bxf6 {[%emt 0:00:00]} 12. c3 {[%emt 0:00:00]} Bg5 {[%emt 0:00:08] 12...Rb8 is a critical line.} 13. Nc2 {[%emt 0:00:03]} Rb8 {[%emt 0:00:02]} 14. a3 {[%emt 0:00:01]} a5 {[%emt 0:00:15] B33: Sicilian: Pelikan and Sveshnikov Variations.} 15. g3 {[%emt 0:00:03]} O-O {[%emt 0:00:06]} 16. Bg2 {[%emt 0:00:02]} Be6 {[%emt 0:00:12] The position is equal.} 17. O-O {[%emt 0:00:03]} Ne7 {[%emt 0:00:14]} 18. Nce3 {[%emt 0:00:08] [#]} Nxd5 $146 {[%emt 0:00:56]} ({Predecessor:} 18... Bxe3 19. Nxe3 Qb6 20. Kh1 b4 21. axb4 axb4 22. Qd2 bxc3 23. bxc3 Rfd8 24. f4 f6 25. fxe5 dxe5 {0-1 Gschnitzer,A (2404)-Gukesh,D (2563) Titled Tuesday intern op 5th May blitz 2020 (1)}) 19. Nxd5 {[%emt 0:00:02]} g6 {[%emt 0:00:01]} 20. f4 {[%emt 0:00:17]} exf4 {[%emt 0:00:35]} 21. gxf4 {[%emt 0:00:02]} Bh6 {[%emt 0:00:03]} 22. f5 {[%emt 0:00:04]} Bxd5 {[%emt 0:00:06]} 23. Qxd5 {[%emt 0:00:10]} Qh4 {[%emt 0:00:10]} 24. Qxd6 {[%emt 0:00:47]} Rfd8 {[%emt 0:00:33]} 25. Qg3 {[%emt 0:01:05]} Qxg3 {[%emt 0:00:04]} 26. hxg3 {[%emt 0:00:01]} Rd2 {[%emt 0:00:00]} 27. Rab1 {[%emt 0:00:09]} Rbd8 {[%emt 0:00:33]} 28. Bf3 {[%emt 0:00:13]} (28. Rf3 $11) 28... R8d3 $15 {[%emt 0:00:54][%mdl 1024] Black has compensation.} 29. f6 {[%emt 0:00:55]} Bg5 {[%emt 0:01:00][%cal Oh7h5] Black is more active.} (29... Be3+ $5 30. Kh1 Bf2 $15) 30. e5 {[%emt 0:00:41]} h5 {[%emt 0:00:01]} 31. Rbe1 {[%emt 0:01:15]} Kf8 {[%emt 0:02:01]} 32. Rf2 {[%emt 0:00:27]} Re3 {[%emt 0:00:21]} 33. Rd1 {[%emt 0:01:00]} (33. Kf1 $11 Rdd3 34. Bc6) 33... Rxd1+ $17 {[%emt 0:00:14]} 34. Bxd1 {[%emt 0:00:02]} Rxg3+ {[%emt 0:00:08][%mdl 4096] Endgame KRB-KRB} 35. Kf1 {[%emt 0:00:45]} h4 {[%emt 0:00:48]} 36. Rg2 {[%emt 0:00:24]} Bf4 {[%emt 0:00:11]} 37. Rxg3 {[%emt 0:00:25]} Bxg3 $15 {[%emt 0:00:01] KB-KB} 38. e6 {[%emt 0:00:12]} fxe6 {[%emt 0:00:00]} 39. Be2 {[%emt 0:00:02] [#]} b4 {[%emt 0:00:05]} 40. cxb4 $11 {[%emt 0:00:02]} axb4 {[%emt 0:00:00]} 41. axb4 {[%emt 0:00:01]} Kf7 {[%emt 0:00:01]} (41... h3 {keeps more tension.} 42. b5 h2 43. Kg2 Kf7) 42. b5 {[%emt 0:00:07]} Kxf6 {[%emt 0:00:01] ...g5 would be deadly.} (42... h3 {is more complex.} 43. Bg4 h2 44. Kg2 Be5) 43. Kg2 {[%emt 0:00:04]} Bc7 {[%emt 0:00:05]} 44. Bg4 {[%emt 0:00:04]} Ke5 {[%emt 0:00:08]} 45. Kf3 {[%emt 0:00:08]} g5 {[%emt 0:00:02]} 46. Bh3 {[%emt 0:00:06]} Kd5 {[%emt 0:00:08]} 47. Bg4 {[%emt 0:00:16]} e5 {[%emt 0:00:02]} 48. Bf5 {[%emt 0:00:03]} Kd4 {[%emt 0:00:03]} 49. b3 $1 {[%emt 0:00:15]} Bb6 {[%emt 0:00:03] aiming for ...Bc7.} 50. Bg6 {[%emt 0:00:15]} Bc7 {[%emt 0:00:05] ( -> ...h3)} 51. Bf5 {[%emt 0:00:10]} Ba5 {[%emt 0:00:03] White must now prevent ...Bc7.} 52. Bg6 {[%emt 0:00:10]} Bd8 {[%emt 0:00:01]} 53. Bf5 $2 {[%emt 0:00:02][%mdl 8192] [#] Now White is beyond hope.} (53. Bb1 $11) 53... Bc7 $1 $19 {[%emt 0:00:01]} 54. Bg6 {[%emt 0:00:04] [#]} h3 $1 {[%emt 0:00:01] Black mates.} 55. Kg3 {[%emt 0:00:01] [#]} g4 $1 {[%emt 0:00:04][%mdl 512]} 56. b6 {[%emt 0:00:08]} Bb8 {[%emt 0:00:03]} ({Inferior is} 56... Bxb6 57. Bh5 $11) 57. Bf5 {[%emt 0:00:05]} e4+ {[%emt 0:00:01]} 58. Kf2 {[%emt 0:00:03]} g3+ {[%emt 0:00:05]} 59. Ke2 {[%emt 0:00:03]} g2 {[%emt 0:00:02]} 60. Bxh3 {[%emt 0:00:03]} g1=Q {[%emt 0:00:01] Weighted Error Value: White=0.36/Black=0.07 (flawless)} 0-1

[Event "CCT Airthings Masters Play-In 2023"]
[Site "Online"]
[Date "2023.02.03"]
[Round "4"]
[White "temiksmozg"]
[Black "starworld123"]
[Result "1-0"]
[ECO "B51"]
[WhiteElo "2251"]
[BlackElo "2456"]
[Annotator "NA"]
[PlyCount "89"]
[EventDate "2023.02.03"]
[EventType "swiss"]
[EventCountry "NET"]
[SourceTitle "playchess.com"]
[Source "ChessBase"]
[SourceQuality "1"]
[TimeControl "600+2"]

1. e4 {[%emt 0:01:29]} c5 {[%emt 0:00:04]} 2. Nf3 {[%emt 0:00:01]} d6 {[%emt 0:00:01]} 3. Bb5+ {[%emt 0:00:02]} Nd7 {[%emt 0:00:01]} 4. a4 {[%emt 0:00:37]} Ngf6 {[%emt 0:00:02]} 5. Qe2 {[%emt 0:00:39]} a6 {[%emt 0:00:13]} 6. Bc4 {[%emt 0:00:02]} e6 {[%emt 0:00:02]} 7. O-O {[%emt 0:00:06]} Be7 {[%emt 0:00:04]} 8. Nc3 {[%emt 0:00:03]} b6 {[%emt 0:00:40]} 9. d4 {[%emt 0:00:09]} cxd4 {[%emt 0:00:00]} 10. Nxd4 {[%emt 0:00:03]} O-O {[%emt 0:00:41]} 11. Nc6 {[%emt 0:00:05]} Qe8 {[%emt 0:00:00]} 12. Nxe7+ {[%emt 0:00:03]} Qxe7 {[%emt 0:00:01]} 13. Bg5 {[%emt 0:00:01]} h6 {[%emt 0:00:09]} 14. Bh4 {[%emt 0:00:10]} Bb7 {[%emt 0:00:26]} 15. Rad1 {[%emt 0:00:05]} Rfd8 {[%emt 0:00:29]} 16. Ba2 {[%emt 0:00:14]} Rac8 {[%emt 0:00:20]} 17. Kh1 {[%emt 0:00:11]} Ne5 {[%emt 0:01:04]} 18. f4 {[%emt 0:00:12]} Ng6 {[%emt 0:00:01]} 19. Bxf6 {[%emt 0:00:15]} Qxf6 {[%emt 0:00:03]} 20. f5 {[%emt 0:00:01]} Ne5 {[%emt 0:00:54]} 21. fxe6 {[%emt 0:00:03]} Qh4 {[%emt 0:00:00]} 22. exf7+ {[%emt 0:00:17]} Kf8 {[%emt 0:00:02]} 23. Nd5 {[%emt 0:00:28]} Bxd5 {[%emt 0:00:26]} 24. Bxd5 {[%emt 0:00:00]} Ng4 {[%emt 0:00:12]} 25. g3 {[%emt 0:00:16]} Qh3 {[%emt 0:00:09]} 26. Be6 {[%emt 0:00:06]} Nf2+ {[%emt 0:00:07]} 27. Rxf2 {[%emt 0:00:32]} Qxe6 {[%emt 0:00:00]} 28. Rd4 {[%emt 0:00:15]} Qe5 {[%emt 0:00:57]} 29. c3 {[%emt 0:00:06]} a5 {[%emt 0:00:09]} 30. Qd3 {[%emt 0:00:33]} Rc7 {[%emt 0:00:08]} 31. Kg2 {[%emt 0:00:15]} Rxf7 {[%emt 0:00:19]} 32. Rxf7+ {[%emt 0:00:02]} Kxf7 {[%emt 0:00:00]} 33. Qc4+ {[%emt 0:00:02]} Qe6 {[%emt 0:00:05]} 34. Qxe6+ {[%emt 0:00:14]} Kxe6 {[%emt 0:00:00]} 35. Rd5 {[%emt 0:00:00]} Rc8 {[%emt 0:00:09]} 36. Kf3 {[%emt 0:00:02]} Rc4 {[%emt 0:00:11]} 37. Rd4 {[%emt 0:00:01]} Rc5 {[%emt 0:00:09]} 38. Ke3 {[%emt 0:00:05]} b5 {[%emt 0:00:01]} 39. Kd3 {[%emt 0:00:05]} g6 {[%emt 0:01:25]} 40. Rd5 {[%emt 0:00:02]} Rxd5+ {[%emt 0:00:23]} 41. exd5+ {[%emt 0:00:00]} Kxd5 {[%emt 0:00:00]} 42. axb5 {[%emt 0:00:02]} Kc5 {[%emt 0:00:01]} 43. c4 {[%emt 0:00:03]} d5 {[%emt 0:00:04]} 44. b3 {[%emt 0:00:13]} g5 {[%emt 0:00:35]} 45. g4 {[%emt 0:00:04]} 1-0

[Event "CCT Airthings Masters Play-In 2023"]
[Site "Online"]
[Date "2023.02.03"]
[Round "4"]
[White "DJ_Haubi"]
[Black "GroovyKettle"]
[Result "0-1"]
[ECO "A07"]
[WhiteElo "2248"]
[BlackElo "2447"]
[Annotator "TA"]
[PlyCount "52"]
[EventDate "2023.02.03"]
[EventType "swiss"]
[EventCountry "NET"]
[SourceTitle "playchess.com"]
[Source "ChessBase"]
[SourceQuality "1"]
[TimeControl "600+2"]

{[%evp 9,52,16,24,10,43,19,14,0,5,0,12,0,0,-2,3,0,0,5,16,12,46,29,45,0,10,1,27,36,39,39,65,43,35,43,37,16,8,-58,-56,-200,-208,-404,-397,-822,-820]} 1. Nf3 {[%emt 0:00:03]} d5 {[%emt 0:00:05]} 2. g3 {[%emt 0:00:02]} c6 {[%emt 0:00:03]} 3. Bg2 {[%emt 0:00:03]} Bf5 {[%emt 0:00:01]} 4. d3 {[%emt 0:00:04]} e6 {[%emt 0:00:01]} 5. O-O {[%emt 0:00:04]} Nd7 {[%emt 0:00:05]} 6. Nbd2 {[%emt 0:00:07] A07: Réti Opening: New York and Capablanca Systems.} h6 {[%emt 0:00:01]} 7. a3 {[%emt 0:00:03]} Ngf6 {[%emt 0:00:01]} 8. c4 {[%emt 0:00:05] The position is equal.} Be7 {[%emt 0:00:04]} 9. b4 {[%emt 0:00:10]} a5 {[%emt 0:00:01]} 10. Rb1 {[%emt 0:00:08]} axb4 {[%emt 0:00:02]} 11. axb4 {[%emt 0:00:02]} O-O {[%emt 0:00:00]} 12. Bb2 {[%emt 0:00:10]} Bh7 {[%emt 0:00:04]} (12... Bxb4 $2 13. Bxf6 Qxf6 14. Rxb4 $18) 13. Qb3 {[%emt 0:00:40] [#]} Bd6 $146 {[%emt 0:00:19]} ({Predecessor:} 13... Qc7 14. Ra1 Rfb8 15. h3 Qd8 16. Ne5 Nxe5 17. Bxe5 Rc8 18. Rxa8 Rxa8 19. Ra1 Nd7 20. Rxa8 Qxa8 {0-1 Striebich,R (2191)-Malich,B (2371) GER-chT Seniors 14th 2005 (2)}) 14. Rfe1 {[%emt 0:00:14]} e5 {[%emt 0:00:43]} 15. e4 {[%emt 0:00:16]} d4 {[%emt 0:00:17]} 16. Bxd4 {[%emt 0:00:48]} exd4 {[%emt 0:00:19]} 17. e5 {[%emt 0:00:04]} Bc7 {[%emt 0:00:45] ...Ng4 is the strong threat.} 18. exf6 {[%emt 0:00:04]} Nxf6 {[%emt 0:00:01]} 19. c5 {[%emt 0:00:21]} Bf5 {[%emt 0:00:10]} 20. Nc4 {[%emt 0:00:09]} Re8 {[%emt 0:01:04]} 21. Rxe8+ {[%emt 0:00:22]} Nxe8 {[%emt 0:00:00]} 22. b5 {[%emt 0:00:21]} cxb5 {[%emt 0:00:45]} 23. Nce5 {[%emt 0:00:06]} (23. Na3 $11) 23... Qf6 $1 $15 {[%emt 0:00:04]} 24. Re1 {[%emt 0:00:13] [#]} ({Better is} 24. c6 $15 Bxe5 25. cxb7) 24... Bxe5 $1 $19 {[%emt 0:00:27]} 25. Nxe5 $2 {[%emt 0:00:03]} (25. Rxe5 Ra1+ 26. Re1 Rxe1+ 27. Nxe1) 25... Qxe5 {[%emt 0:00:24][%mdl 64] Double Attack} 26. Rc1 {[%emt 0:02:19] [#]} (26. Rxe5 {gets mated.} Ra1+) (26. Qb4 Qb8 27. Qxb5) 26... Qxc5 $3 {[%emt 0:00:20][%mdl 512] A superb game by GroovyKettle.   Weighted Error Value: White=0.58/Black=0.09 (flawless)} 0-1